bitfinex-derivatives/quotes_ETHF0:USTF0_20250212
["timestamp","ask_amount","ask_price","bid_price","bid_amount"]
[1739374889504,3.7819,2606.1,2605.5,3.2078]
[1739374889802,0.76753,2605.9,2605.5,3.2078]
[1739374890005,3.97529,2606.1,2605.6,5.06986517]
[1739374890305,0.76748,2606.1,2605.9,0.76751]
[1739374890505,3.2078,2606.5,2605.7,2.081]
[1739374890705,3.2078,2606.5,2605.8,3.2078]
[1739374890897,0.76748,2606.1,2605.9,0.7675]
[1739374891096,3.2078,2606.5,2605.9,0.7675]
[1739374891306,0.76749,2606.1,2605.9,0.7675]
[1739374891506,0.76749,2606.1,2605.8,3.2078]
[1739374891808,0.76749,2606.1,2606.0,0.76749]
[1739374892006,0.00574625,2606.7,2605.9,5.01475187]
[1739374892203,0.00574625,2606.7,2606.3,3.2078]
[1739374892404,0.00574625,2606.7,2606.4,0.76736]
[1739374892604,0.00574625,2606.7,2606.6,0.76732]
[1739374892805,0.00574625,2606.7,2606.6,3.97512]
[1739374893511,0.76719,2607.1,2606.9,0.76721]
[1739374893699,0.76719,2607.1,2607.0,2.081]
[1739374894607,0.0057576,2607.3,2607.0,2.081]
[1739374894803,0.0057576,2607.3,2607.2,3.97494]
[1739374895402,0.0057576,2607.3,2607.2,8.86835156]
[1739374896802,0.0057576,2607.3,2607.2,3.97494]
[1739374897204,0.7728676,2607.3,2607.2,3.2078]
[1739374897404,0.7728676,2607.3,2607.2,5.2878]
[1739374897615,0.0057576,2607.3,2607.2,6.05494]
[1739374898415,0.7728676,2607.3,2607.2,5.2878]
[1739374898821,0.0057576,2607.3,2607.2,5.2878]
[1739374899116,0.0057576,2607.3,2607.2,6.05494]
[1739374901417,0.0057576,2607.3,2607.2,11.13778971]
[1739374901919,0.0057576,2607.3,2607.2,6.05494]
[1739374902919,0.76719,2607.1,2607.0,0.76719]
[1739374903120,9.17086418,2607.3,2606.8,0.0057576]
[1739374903320,0.76723,2606.9,2606.8,0.0057576]
[1739374905325,0.76723,2606.9,2606.8,0.7730176]
[1739374905921,0.5839,2607.2,2606.8,3.2135576]
[1739374906221,0.7672,2607.0,2606.9,0.76721]
[1739374906411,0.76723,2606.9,2606.8,0.7729976]
[1739374906616,0.76723,2606.9,2606.8,0.0057576]
[1739374908230,0.76732,2606.6,2606.5,3.2078]
[1739374909433,0.76732,2606.6,2606.5,3.97515]
[1739374909732,2.50176,2607.2,2606.5,3.2078]
[1739374909920,0.76725,2606.9,2606.8,0.76725]
[1739374910230,2.50176,2607.2,2606.7,0.76727]
[1739374910231,0.76727,2606.8,2606.7,0.76727]
[1739374910421,2.50176,2607.2,2606.5,3.2078]
[1739374910622,0.76732,2606.7,2606.6,0.76731]
[1739374910828,0.76729,2606.8,2606.7,0.76728]
[1739374911218,0.76724,2606.9,2606.8,0.76723]
[1739374911627,0.76728,2606.8,2606.7,0.76725]
[1739374911826,0.76725,2606.9,2606.8,0.76724]
[1739374912723,2.50179,2607.2,2606.5,3.2078]
[1739374912724,0.76732,2606.6,2606.5,3.2078]
[1739374912927,0.76741,2606.3,2606.2,3.2078]
[1739374913731,0.76741,2606.3,2606.2,3.97523]
[1739374914032,1.91816,2606.8,2606.2,3.2078]
[1739374914232,0.76737,2606.5,2606.4,0.76735]
[1739374914628,0.76739,2606.4,2606.3,0.76737]
[1739374915128,1.91824,2606.7,2606.2,3.2078]
[1739374915324,0.76749,2606.0,2605.9,3.97531]
[1739374916133,0.76749,2606.1,2606.0,0.76747]
[1739374916431,1.9182,2606.8,2606.1,1.91867]
[1739374916625,0.76736,2606.5,2606.4,0.76733]
[1739374917133,1.91806,2607.0,2606.2,8.25044552]
[1739374917328,0.76731,2606.7,2606.6,0.7673]
[1739374917531,0.76728,2606.8,2606.7,0.76726]
[1739374917830,0.76731,2606.7,2606.6,0.76729]
[1739374918423,0.76729,2606.8,2606.7,0.76726]
[1739374918626,1.1288,2607.2,2606.6,1.9183]
[1739374918826,0.76715,2607.2,2607.1,0.76716]
[1739374919020,0.0057576,2607.3,2607.1,0.76716]
[1739374919226,0.0057576,2607.3,2606.9,3.2078]
[1739374919432,0.76718,2607.1,2606.9,3.97501]
[1739374919635,0.0057576,2607.3,2606.9,3.97501]
[1739374919830,0.7672,2607.0,2606.9,3.2078]
[1739374920030,0.76729,2606.7,2606.6,3.03998007]
[1739374920237,0.76729,2606.7,2606.6,2.27267007]
[1739374920432,0.6011,2607.2,2606.6,0.19367007]
[1739374920639,0.76715,2607.2,2607.1,0.76717]
[1739374920830,0.0057576,2607.3,2607.1,0.76717]
[1739374920831,0.7728876,2607.3,2607.1,0.76717]
[1739374921134,0.7728876,2607.3,2607.2,0.76714]
[1739374921335,0.0057576,2607.3,2607.2,0.76714]
[1739374921534,0.0057576,2607.3,2607.2,5.69561655]
[1739374921834,0.0057576,2607.3,2607.2,4.92847655]
[1739374922131,0.0057576,2607.3,2607.2,0.76714]
[1739374922634,0.0057576,2607.3,2607.2,5.84666643]
[1739374923233,0.7728676,2607.3,2607.2,0.76714]
[1739374923434,0.0057576,2607.3,2607.2,0.76714]
[1739374923632,0.7728676,2607.3,2607.2,0.76714]
[1739374923937,0.7728676,2607.3,2607.1,0.76715]
[1739374924236,0.7728676,2607.3,2606.7,3.2078]
[1739374924237,0.0057576,2607.3,2606.7,3.2078]
[1739374924935,0.0057576,2607.3,2607.0,0.76718]
[1739374924936,0.76717,2607.1,2607.0,0.76718]
[1739374925135,0.76721,2607.0,2606.7,3.2078]
[1739374925334,0.76724,2606.9,2606.8,0.76726]
[1739374925833,3.2135576,2607.3,2606.6,0.19367007]
[1739374926136,0.76735,2606.5,2606.4,3.2078]
[1739374927032,0.5995,2606.8,2606.4,3.2078]
[1739374927232,1.36677,2606.8,2606.6,0.7673]
[1739374927531,0.76727,2606.8,2606.7,0.76729]
[1739374927932,0.76729,2606.7,2606.6,0.7673]
[1739374928135,1.91793,2607.1,2606.5,0.76732]
[1739374928338,1.91793,2607.1,2606.6,0.7673]
[1739374928535,0.76728,2606.8,2606.4,3.2078]
[1739374928738,2.078,2607.2,2606.4,3.2078]
[1739374929035,2.5230876,2607.3,2606.9,0.76722]
[1739374929036,0.76721,2607.0,2606.9,0.76722]
[1739374929340,0.0057576,2607.3,2606.7,3.2078]
[1739374929533,0.76717,2607.1,2607.0,0.7672]
[1739374929728,0.0057576,2607.3,2607.0,3.2078]
[1739374929933,0.7728676,2607.3,2607.0,3.2078]
[1739374930135,0.7728676,2607.3,2607.1,0.76715]
[1739374930337,0.7728676,2607.3,2607.2,0.76714]
[1739374930538,0.0057576,2607.3,2607.2,0.76714]
[1739374931045,0.0057576,2607.3,2607.1,0.76715]
[1739374931241,0.76714,2607.2,2607.0,3.97497]
[1739374931541,0.0057576,2607.3,2607.0,3.2078]
[1739374931745,0.76716,2607.2,2607.1,0.76717]
[1739374931947,0.76717,2607.1,2607.0,3.2078]
[1739374932144,3.2078,2607.1,2606.5,3.2078]
[1739374932340,0.76743,2606.3,2606.2,3.97523]
[1739374932540,0.76744,2606.2,2606.1,0.76745]
[1739374932739,0.76741,2606.3,2606.2,0.76742]
[1739374933437,0.76741,2606.3,2606.1,3.97524]
[1739374934144,1.91823,2606.7,2606.1,3.97524]
[1739374934346,0.76743,2606.2,2606.1,3.2078]
[1739374934740,0.76743,2606.2,2606.1,3.97526]
[1739374935339,3.2078,2606.8,2606.1,3.2078]
[1739374935540,0.76737,2606.5,2606.1,3.2078]
[1739374935747,3.2078,2606.8,2606.1,3.2078]
[1739374935943,0.76738,2606.4,2606.3,0.76739]
[1739374936342,3.2078,2606.8,2606.1,3.2078]
[1739374936547,3.2078,2606.8,2606.4,3.2078]
[1739374936848,0.76727,2606.8,2606.7,0.76727]
[1739374937247,3.2078,2607.1,2606.4,3.2078]
[1739374937548,0.76716,2607.2,2607.0,0.76719]
[1739374937748,0.76716,2607.2,2606.7,8.16461296]
[1739374937749,0.76715,2607.2,2607.1,0.76715]
[1739374938244,0.76715,2607.2,2607.0,0.76718]
[1739374938650,0.76717,2607.1,2607.0,0.76718]
[1739374938850,0.0057576,2607.3,2607.0,3.97498]
[1739374939050,0.0057576,2607.3,2607.0,3.2078]
[1739374939247,0.76717,2607.1,2607.0,3.2078]
[1739374939552,0.76717,2607.1,2607.0,3.975]
[1739374939744,0.0057576,2607.3,2606.7,0.19269519]
[1739374940053,0.76732,2606.6,2606.5,3.2078]
[1739374941450,3.7674,2606.8,2605.9,3.2078]
[1739374941648,0.76749,2606.1,2606.0,0.76748]
[1739374941851,4.3248,2606.8,2605.9,8.17856807]
[1739374942050,1.91842,2606.5,2605.9,3.2078]
[1739374942248,0.76749,2606.0,2605.9,3.2078]
[1739374943050,3.7747,2606.4,2605.9,3.97531]
[1739374943051,0.76748,2606.1,2605.9,3.97531]
[1739374943249,0.76749,2606.0,2605.9,3.97532]
[1739374943454,3.7747,2606.4,2605.9,0.76752]
[1739374943656,0.76752,2606.0,2605.8,0.76755]
[1739374943955,0.76754,2605.9,2605.7,0.76757]
[1739374944157,0.76754,2605.9,2605.7,0.76758]
[1739374944356,3.2078,2606.1,2605.6,3.2078]
[1739374944553,0.76758,2605.7,2605.6,3.2078]
[1739374945058,3.2078,2605.7,2604.9,3.2078]
[1739374945255,0.5784,2605.6,2604.9,3.2078]
[1739374945456,3.99611,2605.5,2604.9,3.2078]
[1739374945655,3.99611,2605.5,2604.8,0.76784]
[1739374945956,3.99611,2605.5,2604.6,3.2078]
[1739374945957,0.76788,2604.7,2604.6,3.2078]
[1739374946451,0.5681,2605.0,2604.3,0.76798]
[1739374946658,0.5681,2605.0,2604.2,3.2078]
[1739374946855,0.76799,2604.4,2604.2,3.2078]
[1739374947363,0.76798,2604.4,2604.2,3.2078]
[1739374947656,0.76799,2604.3,2604.2,3.2078]
[1739374948352,0.76799,2604.3,2603.9,3.2078]
[1739374948353,0.76801,2604.3,2603.9,3.2078]
[1739374948547,0.0057576,2604.6,2603.9,3.97588]
[1739374948752,0.0057576,2604.6,2604.2,3.2078]
[1739374948952,0.0057576,2604.6,2604.3,0.76799]
[1739374949153,0.7736876,2604.6,2604.3,4.88110181]
[1739374949451,0.76794,2604.5,2604.3,3.2078]
[1739374949657,0.0057576,2604.6,2604.3,3.97578]
[1739374949858,0.7736676,2604.6,2604.3,3.97578]
[1739374950058,0.0057576,2604.6,2604.3,3.2078]
[1739374950253,0.76796,2604.4,2604.3,3.2078]
[1739374950660,0.76796,2604.5,2604.3,3.2078]
[1739374951057,0.0057576,2604.6,2604.3,3.2078]
[1739374951451,0.0057576,2604.6,2604.3,3.97578]
[1739374951660,0.76794,2604.5,2604.3,3.2078]
[1739374951963,0.7736876,2604.6,2604.3,3.2078]
[1739374952160,0.7736876,2604.6,2604.5,0.76794]
[1739374952161,0.0057576,2604.6,2604.5,0.76794]
[1739374952457,0.76764,2605.6,2604.7,1.91968]
[1739374952664,3.2078,2606.1,2605.3,3.2078]
[1739374952862,0.76757,2605.8,2605.3,3.2078]
[1739374953163,4.9474,2606.3,2605.3,5.2858]
[1739374953361,7.24727658,2605.9,2605.3,3.2078]
[1739374953564,0.76767,2605.4,2604.6,0.76789]
[1739374953758,0.7678,2605.0,2604.3,3.2078]
[1739374954068,3.2078,2605.4,2604.7,8.20305327]
[1739374954260,0.76771,2605.3,2605.0,0.76777]
[1739374954462,1.91892,2605.8,2604.9,3.2078]
[1739374954463,3.2078,2605.8,2604.9,3.2078]
[1739374954961,0.76763,2605.6,2605.3,0.76769]
[1739374955156,0.76763,2605.6,2605.2,3.2078]
[1739374955357,0.76763,2605.6,2605.4,0.76766]
[1739374955560,3.2078,2605.9,2605.2,3.40154723]
[1739374955759,0.76767,2605.4,2605.2,0.96144723]
[1739374955959,3.2078,2605.9,2605.2,0.19374723]
[1739374956164,0.7677,2605.3,2605.2,0.19374723]
[1739374956460,0.76763,2605.6,2605.3,0.7677]
[1739374956663,0.76763,2605.6,2605.4,0.76767]
[1739374956863,0.76763,2605.6,2605.2,3.40154723]
[1739374956864,0.0057576,2606.1,2605.2,3.40154723]
[1739374957160,0.76757,2605.8,2605.5,0.76764]
[1739374957354,0.76759,2605.7,2605.5,0.76764]
[1739374957558,0.76758,2605.8,2605.5,0.76764]
[1739374957861,0.76754,2605.9,2605.7,3.2078]
[1739374958055,0.0057576,2606.1,2605.7,3.2078]
[1739374958256,0.0057576,2606.1,2606.0,0.76749]
[1739374958456,0.0057576,2606.1,2606.0,3.97529]
[1739374958666,0.76729,2606.7,2606.5,0.76733]
[1739374958871,0.76729,2606.7,2606.4,0.76736]
[1739374959162,0.5569,2606.9,2606.3,3.2078]
[1739374959360,0.76736,2606.5,2606.3,3.2078]
[1739374959666,0.7673,2606.7,2606.3,3.2078]
[1739374959867,0.7730576,2606.7,2606.5,0.76734]
[1739374960057,0.0057576,2606.7,2606.6,0.76732]
[1739374960459,0.7671,2607.4,2606.6,15.15373987]
[1739374960661,0.76709,2607.4,2607.1,0.76716]
[1739374960863,0.76709,2607.4,2607.1,2.84414]
[1739374961063,0.76711,2607.3,2607.1,2.077]
[1739374961263,0.573,2607.6,2607.0,3.2078]
[1739374961567,0.76714,2607.2,2607.1,2.077]
[1739374961769,0.76713,2607.3,2607.1,2.077]
[1739374962267,5.7041376,2607.6,2607.0,3.2078]
[1739374962564,5.7041376,2607.6,2607.0,5.2848]
[1739374962869,0.76711,2607.3,2607.1,0.76716]
[1739374963065,0.76715,2607.2,2607.0,5.2848]
[1739374963370,0.76715,2607.2,2607.0,6.052]
[1739374963567,0.76715,2607.2,2607.0,6.05199]
[1739374964268,3.7865576,2607.6,2607.0,5.2848]
[1739374964568,0.76712,2607.3,2607.1,0.76716]
[1739374965070,3.7865576,2607.6,2607.0,5.2848]
[1739374965266,0.76717,2607.1,2607.0,3.2078]
[1739374965477,0.76725,2606.9,2606.7,6.05108]
[1739374965668,4.03947658,2607.1,2606.5,0.76733]
[1739374965963,0.7673,2606.7,2606.5,0.76733]
[1739374966165,3.2078,2607.0,2606.4,3.2078]
[1739374966365,3.2078,2607.0,2606.2,0.76742]
[1739374966572,0.7674,2606.4,2606.2,0.76742]
[1739374967066,0.7674,2606.4,2606.1,5.2895576]
[1739374967372,0.76736,2606.5,2606.4,0.76737]
[1739374967767,0.76733,2606.6,2606.1,5.2895576]
[1739374968071,0.76733,2606.6,2606.5,0.76735]
[1739374968276,0.76733,2606.6,2606.2,5.07677754]
[1739374968466,0.76733,2606.6,2606.1,5.2895576]
[1739374968668,0.76733,2606.6,2606.4,0.76735]
[1739374968968,0.76736,2606.5,2606.4,0.76737]
[1739374969272,3.2078,2607.0,2606.1,5.2895576]
[1739374969472,0.76734,2606.6,2606.4,0.76736]
[1739374969871,0.76734,2606.6,2606.5,0.76735]
[1739374970074,0.76728,2606.8,2606.4,3.2078]
[1739374970272,1.1241,2607.3,2606.7,3.2078]
[1739374970470,0.5787576,2607.6,2606.7,3.2078]
[1739374970668,0.5787576,2607.6,2607.1,0.76716]
[1739374970871,0.76716,2607.2,2606.8,4.9097935]
[1739374971174,0.76715,2607.2,2606.7,3.2078]
[1739374971369,0.76715,2607.2,2607.1,0.76717]
[1739374971577,0.5787576,2607.6,2607.1,0.76717]
[1739374971869,0.5787576,2607.6,2606.7,3.2078]
[1739374971870,3.7865576,2607.6,2606.7,3.2078]
[1739374972071,1.91771,2607.4,2606.7,3.2078]
[1739374972272,0.5787576,2607.6,2607.2,3.2078]
[1739374972474,0.76707,2607.5,2607.3,0.76708]
[1739374972675,0.76708,2607.4,2607.3,0.76708]
[1739374973176,0.76707,2607.5,2607.3,0.76708]
[1739374973375,0.76707,2607.5,2607.4,0.76708]
[1739374973574,0.5787576,2607.6,2607.2,3.2078]
[1739374973779,0.5787576,2607.6,2607.5,3.97485]
[1739374973780,0.0057576,2607.6,2607.5,3.97485]
[1739374975075,1.36134,2608.3,2608.2,0.76685]
[1739374975276,0.76684,2608.3,2608.0,3.2078]
[1739374975479,0.76692,2608.0,2607.8,0.76695]
[1739374975774,3.2078,2608.4,2607.6,0.5897]
[1739374975980,0.76704,2607.6,2607.4,3.97488]
[1739374976280,0.76703,2607.6,2607.4,3.97487]
[1739374976476,0.0057576,2607.8,2607.4,3.2078]
[1739374976673,0.76705,2607.5,2607.4,3.2078]
[1739374976873,0.0057576,2607.8,2607.5,5.0713741]
[1739374977077,0.0057576,2607.8,2607.7,0.76699]
[1739374977478,0.0057576,2607.8,2607.7,3.97479]
[1739374978179,0.0057576,2607.8,2607.7,8.84570165]
[1739374978582,0.7668,2608.4,2607.8,1.91741]
[1739374978878,0.7668,2608.4,2608.2,3.97462]
[1739374979077,0.5745,2608.7,2608.2,3.2078]
[1739374979276,0.76682,2608.3,2608.2,3.97465]
[1739374979780,0.76682,2608.3,2608.2,3.2078]
[1739374981185,0.7725376,2608.5,2608.2,3.2078]
[1739374981383,0.76679,2608.4,2608.3,0.76681]
[1739374981874,0.76682,2608.3,2608.2,3.2078]
[1739374982277,0.7669,2608.0,2607.9,2.075]
[1739374982580,1.91698,2608.4,2607.7,3.2078]
[1739374982884,0.76705,2607.5,2607.4,3.97486]
[1739374983183,1.91738,2607.9,2607.4,3.2078]
[1739374983379,0.76705,2607.5,2607.4,3.2078]
[1739374984484,0.76709,2607.4,2607.3,0.7671]
[1739374984877,1.91738,2607.9,2607.2,0.0057576]
[1739374985078,1.91749,2607.7,2607.2,0.7728776]
[1739374985379,0.76711,2607.3,2607.2,0.7728776]
[1739374985578,0.7671,2607.4,2607.3,0.7671]
[1739374985775,0.76705,2607.6,2607.5,0.76705]
[1739374986186,0.76709,2607.4,2607.3,0.7671]
[1739374986380,1.135,2608.0,2607.2,0.0057576]
[1739374986688,1.35142,2608.0,2607.9,0.76693]
[1739374987086,0.76692,2608.0,2607.9,0.76693]
[1739374987481,0.76693,2608.0,2607.5,7.24727658]
[1739374987783,1.917,2608.4,2607.5,7.24727658]
[1739374987996,0.76702,2607.6,2607.5,3.2078]
[1739374988183,0.76709,2607.4,2607.3,0.7671]
[1739374988379,1.91749,2607.7,2607.2,3.2135576]
[1739374988579,0.76711,2607.3,2607.2,3.2135576]
[1739374988784,0.76711,2607.3,2607.2,0.0057576]
[1739374989689,0.76706,2607.5,2607.4,0.76707]
[1739374989890,0.76711,2607.3,2607.2,0.0057576]
[1739374991397,0.76709,2607.4,2607.3,0.76711]
[1739374991691,1.91749,2607.7,2607.3,0.7671]
[1739374991993,0.76711,2607.3,2607.2,3.9806876]
[1739374992488,0.7671,2607.4,2607.3,0.7671]
[1739374992685,0.76711,2607.3,2607.2,3.9806776]
[1739374993087,0.76711,2607.3,2607.2,3.2135576]
[1739374994584,0.76711,2607.3,2607.2,0.0057576]
[1739374994779,0.76723,2606.9,2606.8,3.2078]
[1739374996194,1.36743,2606.9,2606.8,3.2078]
[1739374996596,0.76729,2606.7,2606.6,0.0057576]
[1739374996789,0.76729,2606.7,2606.0,4.03947658]
[1739374996790,0.76747,2606.1,2606.0,0.76748]
[1739374996995,3.99122,2606.8,2605.9,3.2078]
[1739374997189,0.76745,2606.2,2606.1,0.76745]
[1739374997787,0.76742,2606.3,2606.2,0.76743]
[1739374997991,0.76747,2606.1,2606.0,0.76748]
[1739374998192,0.76746,2606.1,2606.0,0.76748]
[1739374998394,0.76746,2606.2,2606.1,0.76746]
[1739374998595,0.76747,2606.1,2606.0,0.76749]
[1739374998791,1.91837,2606.5,2605.9,3.2135576]
[1739374998994,0.76749,2606.0,2605.9,3.9810676]
[1739374999195,0.76749,2606.1,2605.9,3.9810576]
[1739374999393,1.91816,2606.8,2605.9,3.2135576]
[1739374999593,1.91816,2606.8,2606.3,0.76739]
[1739374999792,0.6002,2606.9,2606.4,0.76737]
[1739374999996,0.76736,2606.5,2606.4,0.76737]
[1739375000386,0.6002,2606.9,2606.4,0.76737]
[1739375000792,0.6002,2606.9,2606.2,3.2078]
[1739375001193,0.76736,2606.5,2606.4,0.76736]
[1739375001391,0.6002,2606.9,2606.5,0.76734]
[1739375001701,0.76732,2606.6,2606.5,0.76734]
[1739375002092,0.76735,2606.5,2606.4,0.76736]
[1739375002592,0.6002,2606.9,2606.2,3.2078]
[1739375002797,0.76734,2606.6,2606.5,0.76734]
[1739375003004,0.6002,2606.9,2606.2,3.2078]
[1739375003300,0.6002,2606.9,2606.6,0.76731]
[1739375003597,2.51831,2606.9,2606.2,3.2078]
[1739375003794,0.76741,2606.3,2606.2,3.2078]
[1739375003996,0.76741,2606.3,2606.2,3.97523]
[1739375004193,0.76741,2606.3,2606.2,3.2078]
[1739375004497,0.76743,2606.2,2606.1,1.34114]
[1739375004801,5.12605,2606.7,2606.1,0.5737]
[1739375005004,0.76743,2606.2,2606.1,0.76745]
[1739375005301,0.76749,2606.1,2606.0,0.76748]
[1739375006396,1.91837,2606.5,2605.9,3.2135576]
[1739375006603,0.76745,2606.2,2606.1,0.76743]
[1739375006803,0.76749,2606.0,2605.9,3.9810576]
[1739375007201,1.91845,2606.4,2605.9,3.2135576]
[1739375007399,0.76747,2606.1,2606.0,0.76749]
[1739375007604,0.76749,2606.0,2605.9,3.2135576]
[1739375007832,0.76749,2606.0,2605.9,0.0057576]
[1739375008305,0.76764,2605.5,2605.4,3.2078]
[1739375009499,0.76762,2605.6,2605.5,0.76762]
[1739375010006,0.76764,2605.5,2605.4,3.2078]
[1739375010396,3.2135576,2605.7,2605.2,0.0057576]
[1739375010597,0.7677,2605.3,2605.2,0.0057576]
[1739375011897,6.0,2605.3,2604.2,3.2078]
[1739375012099,0.76799,2604.3,2603.9,0.7681]
[1739375012307,0.76805,2604.2,2603.9,0.7681]
[1739375012703,3.2078,2604.7,2603.8,3.40066283]
[1739375012911,3.2078,2604.7,2604.2,3.2078]
[1739375013207,0.76802,2604.2,2604.0,0.0057576]
[1739375013403,0.79113703,2604.5,2604.2,0.76801]
[1739375013596,0.79113703,2604.5,2604.3,3.2078]
[1739375014208,0.01742943,2604.4,2604.0,2.0787576]
[1739375014509,0.76805,2604.2,2604.0,0.0057576]
[1739375014801,0.76803,2604.2,2604.0,0.0057576]
[1739375015002,0.01742943,2604.4,2604.0,0.0057576]
[1739375015207,0.01742943,2604.2,2604.0,0.0057576]
[1739375015399,0.78546943,2604.2,2604.1,3.2078]
[1739375020010,0.01742943,2604.2,2604.1,3.97585]
[1739375020210,0.0057576,2604.5,2604.1,14.93455905]
[1739375020408,0.0057576,2604.5,2604.4,3.97577]
[1739375020604,0.0057576,2604.5,2604.4,4.53567]
[1739375021009,0.7736976,2604.5,2604.4,0.5599]
[1739375021210,0.7736976,2604.5,2604.4,1.32787]
[1739375021408,0.76799,2604.3,2604.2,0.551]
[1739375021606,0.76802,2604.2,2604.1,3.2078]
[1739375022811,0.76823,2603.5,2603.4,3.2078]
[1739375024915,0.5628,2604.0,2603.4,3.2078]
[1739375025118,0.76823,2603.5,2603.4,3.2078]
[1739375026610,3.7706,2604.0,2603.2,0.03060203]
[1739375026817,3.7706,2604.0,2603.0,3.8138]
[1739375026818,0.76835,2603.1,2603.0,3.8138]
[1739375027004,0.76835,2603.1,2603.0,0.606]
[1739375027317,0.7683,2603.3,2603.2,0.76832]
[1739375027912,1.92036,2603.8,2603.2,0.76832]
[1739375028112,0.76829,2603.4,2603.2,0.76832]
[1739375028910,2.49309,2604.1,2603.3,8.25369335]
[1739375029215,0.76819,2603.7,2603.3,8.25369335]
[1739375029516,0.76818,2603.7,2603.3,8.25369335]
[1739375029720,2.49309,2604.1,2603.6,3.976]
[1739375030014,0.5729,2604.1,2603.6,3.2078]
[1739375030313,0.0057576,2604.5,2603.9,3.2078]
[1739375030512,0.0057576,2604.5,2604.2,0.76802]
[1739375030712,0.76802,2604.3,2604.0,0.5604]
[1739375031006,0.0057576,2604.5,2604.0,4.92968332]
[1739375031317,0.76805,2604.1,2604.0,4.92968332]
[1739375032104,0.5575,2604.2,2603.5,0.76821]
[1739375032310,0.7682,2603.6,2603.5,0.76821]
[1739375032611,0.76819,2603.7,2603.4,5.8412]
[1739375033007,0.76816,2603.8,2603.6,0.76818]
[1739375033207,1.9202,2604.1,2603.5,0.76822]
[1739375033402,0.76821,2603.6,2603.5,0.76822]
[1739375033611,1.9202,2604.1,2603.4,5.8412]
[1739375033809,1.9202,2604.1,2603.6,0.76819]
[1739375034209,0.76817,2603.7,2603.6,0.76819]
[1739375034422,0.5575,2604.2,2603.4,5.8412]
[1739375034709,0.5575,2604.2,2603.7,0.76815]
[1739375034710,0.76814,2603.8,2603.7,0.76815]
[1739375034920,2.47763,2604.2,2603.5,4.89666337]
[1739375035111,0.76821,2603.6,2603.5,0.76821]
[1739375035313,2.47763,2604.2,2603.6,0.76817]
[1739375035616,0.76817,2603.7,2603.6,0.76817]
[1739375035813,0.76813,2603.9,2603.4,7.80767658]
[1739375036116,0.7681,2604.0,2603.8,0.76812]
[1739375036316,0.76814,2603.8,2603.7,3.97596]
[1739375036512,0.76814,2603.8,2603.7,3.2078]
[1739375037111,1.92028,2604.0,2603.4,3.97604]
[1739375037313,0.76822,2603.6,2603.5,0.76823]
[1739375037518,2.47217,2604.1,2603.4,3.2078]
[1739375037714,0.76823,2603.5,2603.4,3.2078]
[1739375038019,0.76823,2603.5,2603.4,3.97606]
[1739375038217,0.76823,2603.5,2603.4,3.2078]
[1739375038520,0.76823,2603.5,2603.4,3.97606]
[1739375038916,1.92029,2603.9,2603.4,3.2078]
[1739375039310,0.76823,2603.5,2603.4,3.97605]
[1739375039515,2.47217,2604.1,2603.8,0.76814]
[1739375039716,2.47217,2604.1,2603.4,3.2078]
[1739375039916,0.7682,2603.7,2603.6,0.7682]
[1739375040213,2.47217,2604.1,2603.4,3.2078]
[1739375040423,0.76816,2603.8,2603.7,0.76815]
[1739375040716,1.92017,2604.1,2603.4,3.2078]
[1739375040917,0.76822,2603.6,2603.5,0.76821]
[1739375041119,1.92021,2604.0,2603.4,3.2078]
[1739375041320,4.03947658,2603.6,2603.1,3.2078]
[1739375041621,0.76834,2603.2,2603.1,0.76834]
[1739375041808,0.76837,2603.1,2603.0,0.76837]
[1739375042410,0.76841,2602.9,2602.8,3.2078]
[1739375043114,0.7684,2603.0,2602.9,0.7684]
[1739375043416,0.0057576,2603.1,2603.0,0.76838]
[1739375043822,0.5716,2604.1,2603.0,5.0539959]
[1739375044025,0.76825,2603.5,2603.4,3.2078]
[1739375044324,0.76828,2603.4,2603.3,0.76828]
[1739375044625,0.76832,2603.2,2603.1,3.97614]
[1739375045513,0.0057576,2603.4,2603.3,0.76829]
[1739375046115,3.2078,2604.4,2603.3,11.79028981]
[1739375046317,0.76791,2604.6,2604.4,0.76794]
[1739375046519,0.5837,2605.0,2604.2,3.2078]
[1739375046720,0.76799,2604.3,2604.2,3.2078]
[1739375047021,0.76808,2604.0,2603.9,0.19314631]
[1739375047325,0.76805,2604.1,2604.0,0.0057576]
[1739375049526,1.1562,2604.3,2604.0,0.0057576]
[1739375049527,3.2135576,2604.5,2604.0,3.2135576]
[1739375049733,0.76798,2604.4,2604.2,0.768]
[1739375049917,0.0057576,2604.5,2604.3,0.76798]
[1739375050120,0.0057576,2604.5,2604.4,3.2078]
[1739375050316,0.0057576,2604.5,2604.4,3.97577]
[1739375051329,0.76775,2605.2,2605.0,0.76778]
[1739375051523,0.76775,2605.2,2605.0,3.97558]
[1739375051925,1.91926,2605.3,2604.7,3.2078]
[1739375052125,2.51154,2605.4,2604.7,3.2078]
[1739375052322,3.8001,2605.4,2604.7,3.2078]
[1739375052523,0.0057576,2605.3,2604.7,3.2078]
[1739375052927,0.76785,2604.8,2604.7,3.2078]
[1739375053932,0.76785,2604.8,2604.7,3.97568]
[1739375054123,0.0057576,2605.3,2604.8,0.76782]
[1739375054124,0.7678,2605.0,2604.8,0.76782]
[1739375054630,0.0057576,2605.3,2604.7,3.2078]
[1739375054831,0.7734676,2605.3,2605.1,0.76774]
[1739375055017,0.0057576,2605.3,2605.0,3.2078]
[1739375055328,0.0057576,2605.3,2605.2,0.76773]
[1739375056432,1.35047,2605.8,2605.6,0.76759]
[1739375056633,0.5829,2605.8,2605.6,0.76759]
[1739375056818,1.35047,2605.8,2605.5,3.2078]
[1739375057023,0.5829,2605.8,2605.5,3.2078]
[1739375057218,3.2078,2606.3,2605.6,4.91850813]